bitfinex-derivatives/quotes_BTCF0:USTF0_20240910
["timestamp","ask_amount","ask_price","bid_price","bid_amount"]
[1725985072414,0.089589,56693.0,56692.0,0.103591]
[1725985074106,0.089589,56693.0,56692.0,0.303591]
[1725985074420,0.0014,56693.0,56692.0,0.303591]
[1725985074615,0.0014,56693.0,56692.0,0.39152699]
[1725985074820,0.0014,56693.0,56692.0,1.54628006]
[1725985075025,0.0014,56693.0,56692.0,1.63447106]
[1725985075323,0.0004,56699.0,56698.0,0.088182]
[1725985075623,0.0004,56699.0,56698.0,0.288182]
[1725985075822,0.0004,56699.0,56698.0,0.288582]
[1725985076416,0.088175,56703.0,56702.0,0.088174]
[1725985076617,0.088175,56703.0,56702.0,0.288574]
[1725985077120,0.088175,56703.0,56702.0,0.14138362]
[1725985077318,0.088175,56703.0,56702.0,0.088574]
[1725985077520,0.088175,56703.0,56702.0,0.14138078]
[1725985077824,0.18435,56703.0,56702.0,0.0014]
[1725985078020,0.272525,56703.0,56702.0,0.0014]
[1725985078216,0.890005,56703.0,56702.0,0.0014]
[1725985078426,1.585805,56703.0,56702.0,0.0014]
[1725985078625,1.590805,56703.0,56702.0,0.0024]
[1725985079422,0.37355,56703.0,56702.0,0.0024]
[1725985080118,0.90263,56703.0,56702.0,0.0024]
[1725985080325,0.37355,56703.0,56702.0,0.0024]
[1725985080713,0.189575,56703.0,56702.0,0.0024]
[1725985080921,0.101175,56703.0,56702.0,0.0024]
[1725985081115,0.18935,56703.0,56702.0,0.0024]
[1725985081319,0.38935,56703.0,56702.0,0.0024]
[1725985081519,1.606605,56703.0,56702.0,0.0024]
[1725985081737,0.088185,56696.0,56692.0,0.0068]
[1725985081919,0.376378,56693.0,56692.0,0.0068]
[1725985082229,0.376778,56693.0,56692.0,0.0068]
[1725985083219,0.005,56703.0,56692.0,0.2098]
[1725985083420,0.088185,56696.0,56695.0,0.05280736]
[1725985083713,0.2,56700.0,56692.0,0.0098]
[1725985083714,0.088189,56693.0,56692.0,0.0098]
[1725985083919,0.0008,56693.0,56692.0,0.0098]
[1725985084119,0.0008,56693.0,56692.0,0.25820395]
[1725985084322,0.0008,56693.0,56692.0,0.187791]
[1725985084523,0.10507614,56703.0,56699.0,0.08818]
[1725985084826,0.088176,56702.0,56700.0,0.0913]
[1725985085030,0.0875,56707.0,56700.0,0.0913]
[1725985085323,0.2,56711.0,56708.0,0.088165]
[1725985085624,0.0875,56713.0,56709.0,0.088164]
[1725985085829,0.09936373,56713.0,56709.0,0.088164]
[1725985086027,0.09936373,56713.0,56707.0,0.0528116]
[1725985086328,0.09936373,56713.0,56705.0,0.08817]
[1725985086329,0.0008,56708.0,56706.0,0.0528116]
[1725985086525,0.0008,56707.0,56706.0,0.1409806]
[1725985086720,0.0008,56708.0,56707.0,0.088168]
[1725985086919,0.0008,56708.0,56707.0,0.15855676]
[1725985087225,0.014,56713.0,56712.0,0.08816]
[1725985087430,0.0041,56727.0,56712.0,0.28]
[1725985087621,0.01200303,56728.0,56718.0,0.05279105]
[1725985087821,0.0971,56729.0,56718.0,0.05279105]
[1725985088021,0.0971,56729.0,56721.0,0.088145]
[1725985088219,0.088139,56726.0,56721.0,0.088145]
[1725985088620,0.088139,56726.0,56722.0,0.088144]
[1725985088827,0.088139,56726.0,56718.0,0.05279105]
[1725985088828,0.014,56728.0,56721.0,0.28]
[1725985089026,0.014,56728.0,56725.0,0.088139]
[1725985089931,0.024,56728.0,56725.0,0.088139]
[1725985090118,0.112135,56728.0,56725.0,0.088139]
[1725985090520,0.014,56726.0,56725.0,0.088139]
[1725985090729,0.014,56726.0,56725.0,0.089139]
[1725985090935,0.014,56726.0,56725.0,0.089539]
[1725985091232,0.014,56728.0,56725.0,0.090539]
[1725985091434,0.014,56728.0,56727.0,0.0004]
[1725985091630,0.102135,56728.0,56727.0,0.0004]
[1725985091928,0.088135,56728.0,56727.0,0.0004]
[1725985092526,0.102135,56728.0,56727.0,0.0004]
[1725985093235,0.112135,56728.0,56727.0,0.0014]
[1725985093924,0.12427052,56728.0,56727.0,0.0014]
[1725985094124,0.12427052,56728.0,56727.0,0.0024]
[1725985096134,0.12427052,56728.0,56715.0,0.088155]
[1725985096135,1.16497552,56728.0,56715.0,0.088155]
[1725985096336,0.0004,56716.0,56713.0,0.0931]
[1725985096523,0.0004,56714.0,56713.0,0.181258]
[1725985096737,0.0004,56716.0,56715.0,0.088155]
[1725985096927,0.0004,56716.0,56715.0,0.088555]
[1725985097433,0.0004,56716.0,56715.0,0.369155]
[1725985098330,0.0144,56716.0,56715.0,0.370155]
[1725985099041,0.0144,56716.0,56715.0,0.369155]
[1725985099237,0.0254,56716.0,56715.0,0.370155]
[1725985101638,0.088139,56726.0,56715.0,1.41096]
[1725985101843,0.088139,56726.0,56725.0,0.0004]
[1725985102039,0.092919,56739.0,56726.0,0.088137]
[1725985102040,0.088125,56735.0,56726.0,0.088137]
[1725985102241,0.088125,56735.0,56734.0,0.088125]
[1725985102631,0.08813,56732.0,56730.0,0.088131]
[1725985102939,0.08853,56731.0,56730.0,0.088131]
[1725985103337,0.0004,56731.0,56730.0,0.088131]
[1725985103644,0.08853,56731.0,56730.0,0.088131]
[1725985103938,0.088138,56726.0,56725.0,0.0004]
[1725985104132,0.088538,56726.0,56725.0,0.0004]
[1725985104632,0.093538,56726.0,56725.0,0.0014]
[1725985105528,0.181676,56726.0,56725.0,0.0014]
[1725985106631,0.181676,56726.0,56725.0,0.0024]
[1725985107332,0.181676,56726.0,56714.0,0.088155]
[1725985107333,1.13428,56726.0,56714.0,0.088155]
[1725985107641,0.088154,56717.0,56715.0,0.088155]
[1725985107837,0.28,56721.0,56713.0,0.092]
[1725985108036,0.088557,56714.0,56713.0,0.092]
[1725985108531,0.088163,56710.0,56707.0,0.0895]
[1725985108736,0.0004,56708.0,56707.0,0.0895]
[1725985108933,0.0004,56708.0,56707.0,0.2895]
[1725985109441,0.0004,56708.0,56707.0,0.377667]
[1725985109839,0.0004,56708.0,56707.0,0.378667]
[1725985110241,0.0004,56708.0,56707.0,0.178667]
[1725985110638,0.0004,56708.0,56707.0,0.177667]
[1725985110846,0.0024,56708.0,56707.0,0.178667]
[1725985111344,0.0094,56708.0,56707.0,0.179667]
[1725985112339,0.0094,56708.0,56707.0,0.23245805]
[1725985112535,0.0094,56708.0,56707.0,0.179667]
[1725985113042,0.0094,56708.0,56707.0,0.25005507]
[1725985113642,0.0094,56708.0,56707.0,0.179667]
[1725985114241,0.0094,56708.0,56707.0,0.24994653]
[1725985114640,0.097566,56708.0,56707.0,0.179667]
[1725985114950,0.0094,56708.0,56707.0,0.179667]
[1725985115538,0.0094,56708.0,56707.0,1.59797782]
[1725985115848,0.0041,56722.0,56708.0,0.088166]
[1725985116150,0.088144,56722.0,56721.0,0.0004]
[1725985117041,0.10801345,56722.0,56721.0,0.088546]
[1725985117439,0.10801345,56722.0,56721.0,0.0004]
[1725985117648,0.10801345,56722.0,56721.0,0.0014]
[1725985118449,0.19615745,56722.0,56721.0,0.0014]
[1725985118743,0.19415745,56722.0,56721.0,0.0024]
[1725985119344,0.10601345,56722.0,56721.0,0.0024]
[1725985121245,0.006,56722.0,56721.0,0.370546]
[1725985123242,0.094144,56722.0,56721.0,0.370546]
[1725985123437,0.094144,56722.0,56721.0,0.05518429]
[1725985123645,0.094144,56722.0,56721.0,0.0024]
[1725985124543,0.182288,56722.0,56721.0,0.0024]
[1725985125147,0.094144,56722.0,56721.0,0.0024]
[1725985125949,0.094144,56722.0,56721.0,0.090546]
[1725985126847,0.094144,56722.0,56721.0,0.0024]
[1725985131356,0.006,56722.0,56721.0,0.14333029]
[1725985131854,0.006,56722.0,56721.0,0.23583029]
[1725985132053,0.006,56722.0,56721.0,0.05518429]
[1725985132248,0.182288,56722.0,56721.0,0.0024]
[1725985133252,0.094144,56722.0,56721.0,0.0024]
[1725985135051,0.182288,56722.0,56721.0,0.0024]
[1725985135455,0.094144,56722.0,56721.0,0.090546]
[1725985137147,0.094144,56722.0,56721.0,0.0024]
[1725985138259,0.006,56722.0,56721.0,0.090546]
[1725985138657,0.006,56722.0,56721.0,1.307226]
[1725985139661,0.006,56722.0,56721.0,0.707226]
[1725985140369,0.006,56722.0,56721.0,0.82064989]
[1725985140568,0.092223,56736.0,56729.0,0.088132]
[1725985140756,0.08813,56731.0,56730.0,0.276632]
[1725985140961,0.088125,56735.0,56734.0,0.088124]
[1725985141155,0.088125,56735.0,56734.0,0.288124]
[1725985142163,0.17625,56735.0,56734.0,0.2]
[1725985142366,0.08813,56731.0,56730.0,0.1885]
[1725985142569,0.08853,56731.0,56730.0,0.1885]
[1725985142767,0.08853,56731.0,56730.0,0.3885]
[1725985142966,0.08853,56731.0,56730.0,0.476632]
[1725985143469,0.08853,56731.0,56730.0,0.0958]
[1725985144468,0.088132,56730.0,56722.0,0.0924]
[1725985144667,0.088143,56723.0,56722.0,0.0924]
[1725985145177,0.088543,56723.0,56722.0,0.380544]
[1725985145770,0.088147,56720.0,56719.0,0.2939]
[1725985146158,0.088147,56720.0,56719.0,0.0939]
[1725985146159,0.088547,56720.0,56719.0,0.0939]
[1725985146360,0.088547,56720.0,56719.0,0.18201211]
[1725985147668,0.095547,56720.0,56719.0,0.18301211]
[1725985148458,0.095547,56720.0,56719.0,0.18401211]
[1725985149054,0.095547,56720.0,56719.0,0.27216111]
[1725985151267,0.0074,56720.0,56719.0,0.184049]
[1725985151471,0.0074,56720.0,56719.0,0.27216111]
[1725985151776,0.0074,56720.0,56719.0,0.38600028]
[1725985152362,0.095547,56720.0,56719.0,0.38600028]
[1725985153067,0.095547,56720.0,56719.0,0.0959]
[1725985153663,0.095547,56720.0,56719.0,0.29789635]
[1725985153865,0.0074,56720.0,56719.0,0.38604366]
[1725985154468,0.0074,56720.0,56719.0,1.51496366]
[1725985154662,0.0074,56720.0,56719.0,1.53258608]
[1725985154868,0.095547,56720.0,56719.0,0.29793155]
[1725985155675,0.0074,56720.0,56719.0,1.53258608]
[1725985155980,0.088131,56731.0,56719.0,1.47421365]
[1725985155981,0.088135,56728.0,56719.0,1.47421365]
[1725985156177,0.088135,56728.0,56727.0,0.2004]
[1725985157470,0.007,56728.0,56727.0,0.289537]
[1725985158677,0.007,56728.0,56727.0,0.37765486]
[1725985158975,0.007,56728.0,56727.0,0.49103014]
[1725985159477,0.007,56728.0,56727.0,0.90749486]
[1725985159665,0.007,56728.0,56727.0,1.50749486]
[1725985159866,0.088124,56736.0,56728.0,0.088135]
[1725985160061,0.088124,56736.0,56735.0,0.2004]
[1725985160561,0.088115,56741.0,56735.0,0.2004]
[1725985160761,0.2,56754.0,56735.0,0.2004]
[1725985160762,0.088112,56743.0,56742.0,0.2]
[1725985160977,0.088105,56747.0,56740.0,0.0004]
[1725985161272,0.088515,56741.0,56740.0,0.0004]
[1725985161975,0.088515,56741.0,56740.0,0.088516]
[1725985162273,0.0004,56741.0,56740.0,0.090516]
[1725985162472,0.0004,56741.0,56740.0,0.0024]
[1725985162865,0.088515,56741.0,56740.0,0.0024]
[1725985163267,1.30535,56741.0,56740.0,0.0024]
[1725985163476,0.70535,56741.0,56740.0,0.0024]
[1725985163979,1.30535,56741.0,56740.0,0.0024]
[1725985164471,1.31763476,56741.0,56740.0,0.001]
[1725985164780,0.38891476,56741.0,56740.0,0.001]
[1725985164977,0.38891476,56741.0,56740.0,0.002]
[1725985165974,0.10079976,56741.0,56740.0,0.002]
[1725985166475,0.18891476,56741.0,56740.0,0.002]
[1725985167967,0.10079976,56741.0,56740.0,0.002]
[1725985168778,0.088515,56741.0,56740.0,0.202]
[1725985169170,0.0004,56741.0,56740.0,0.290116]
[1725985169369,0.01222014,56750.0,56740.0,1.33072]
[1725985169575,0.088101,56750.0,56749.0,0.0004]
[1725985169771,0.0893,56758.0,56749.0,0.0004]
[1725985169772,0.088095,56754.0,56749.0,0.0004]
[1725985169971,0.088095,56754.0,56753.0,0.2004]
[1725985171787,0.088095,56754.0,56753.0,0.0004]
[1725985172274,0.001,56754.0,56753.0,0.289496]
[1725985174475,0.088089,56758.0,56757.0,0.08809]
[1725985174684,0.088089,56758.0,56757.0,0.28809]
[1725985174883,0.088089,56758.0,56757.0,0.28849]
[1725985175080,0.088089,56758.0,56757.0,0.0004]
[1725985176279,0.088089,56758.0,56757.0,0.2004]
[1725985177486,0.088089,56758.0,56757.0,0.0014]
[1725985177984,0.089089,56758.0,56757.0,0.0024]
[1725985178784,0.089089,56758.0,56757.0,0.29049]
[1725985178785,0.001,56758.0,56757.0,0.29049]
[1725985179771,0.001,56758.0,56757.0,1.41905]
[1725985180282,0.088081,56763.0,56760.0,0.088084]
[1725985180478,0.095,56769.0,56762.0,0.2004]
[1725985180684,0.088081,56763.0,56762.0,0.2004]
[1725985181388,0.176162,56763.0,56762.0,0.0004]
[1725985181584,0.088081,56763.0,56762.0,0.0004]
[1725985181886,0.088081,56763.0,56762.0,0.2004]
[1725985182280,0.088081,56763.0,56762.0,0.379582]
[1725985182475,0.088081,56763.0,56762.0,0.380582]
[1725985182476,0.089081,56763.0,56762.0,0.380582]
[1725985182982,0.10083529,56763.0,56762.0,0.2925]
[1725985183583,0.10083529,56763.0,56762.0,0.0024]
[1725985184382,0.10083529,56763.0,56762.0,0.0014]
[1725985184587,0.10083529,56763.0,56762.0,0.0024]
[1725985185178,0.09983529,56763.0,56762.0,0.0014]
[1725985185386,0.09983529,56763.0,56762.0,0.0024]
[1725985185787,0.09983529,56763.0,56762.0,0.0014]
[1725985186085,0.09983529,56763.0,56762.0,0.0024]
[1725985186287,0.29983529,56763.0,56762.0,0.0024]
[1725985186585,0.09983529,56763.0,56762.0,0.0024]
[1725985186796,0.18791629,56763.0,56762.0,0.0024]
[1725985187287,0.09983529,56763.0,56762.0,0.0024]
[1725985187691,0.09983529,56763.0,56762.0,0.0014]
[1725985187893,0.09983529,56763.0,56762.0,0.0024]
[1725985189496,0.088072,56769.0,56762.0,0.0004]
[1725985189794,0.01181936,56769.0,56768.0,0.0004]
[1725985189983,0.088072,56769.0,56768.0,0.1886]
[1725985191179,0.088072,56769.0,56768.0,0.276673]
[1725985191390,0.01186252,56771.0,56770.0,0.08807]
[1725985191689,0.088068,56772.0,56770.0,0.08847]
[1725985191906,0.088068,56772.0,56771.0,0.2004]
[1725985194196,0.09999286,56772.0,56771.0,0.0004]
[1725985194396,0.09999286,56772.0,56771.0,0.0014]
[1725985194597,0.09999286,56772.0,56771.0,0.0024]
[1725985197887,0.18806086,56772.0,56771.0,0.0024]
[1725985200298,0.27612886,56772.0,56771.0,0.0024]
[1725985200500,1.40456886,56772.0,56771.0,0.0024]
[1725985200692,1.49896886,56772.0,56771.0,0.0024]
[1725985200892,1.41090086,56772.0,56771.0,0.0024]
[1725985201189,0.18805986,56772.0,56771.0,0.0024]
[1725985201388,0.176148,56767.0,56766.0,0.05260217]
[1725985201595,0.088081,56763.0,56762.0,0.0004]
[1725985201806,0.088081,56763.0,56759.0,0.05272861]
[1725985201807,0.176184,56756.0,56755.0,0.05272861]
[1725985201989,0.176184,56756.0,56751.0,0.0857]
[1725985201990,0.088095,56754.0,56753.0,0.05272861]
[1725985202189,0.088097,56753.0,56751.0,0.24419328]
[1725985202399,0.0004,56752.0,56751.0,0.173799]
[1725985203000,0.088498,56752.0,56751.0,0.15603777]
[1725985203203,0.088498,56752.0,56751.0,0.0857]
[1725985203500,0.10057802,56752.0,56751.0,0.0857]
[1725985203698,0.088099,56751.0,56750.0,0.07033777]
[1725985203894,0.088099,56751.0,56747.0,0.05274582]
[1725985203895,0.0004,56751.0,56747.0,0.05274582]
[1725985204094,0.088104,56748.0,56747.0,0.05274582]
[1725985204299,0.088105,56747.0,56746.0,0.05274582]
[1725985204497,0.088107,56746.0,56745.0,0.13844582]
[1725985204698,0.088507,56746.0,56745.0,0.0857]
[1725985204894,0.088107,56746.0,56745.0,0.0857]
[1725985206802,0.10002864,56746.0,56745.0,0.0857]
[1725985206991,0.10102864,56746.0,56745.0,0.0857]
[1725985207403,0.21292164,56746.0,56737.0,0.05274582]
[1725985207598,0.0004,56738.0,56736.0,0.05274582]
[1725985207903,0.088123,56736.0,56734.0,0.25274582]
[1725985208099,0.0004,56738.0,56735.0,0.088124]
[1725985208299,0.0004,56738.0,56734.0,0.25274582]
[1725985208504,0.0004,56738.0,56737.0,0.0024]
[1725985208696,0.0014,56738.0,56737.0,0.0024]
[1725985209105,0.0014,56738.0,56737.0,0.0004]
[1725985209320,0.0014,56738.0,56737.0,0.088521]
[1725985209503,0.0014,56738.0,56737.0,0.288521]
[1725985210101,0.089519,56738.0,56737.0,0.0004]
[1725985210402,0.0014,56738.0,56737.0,0.288521]
[1725985211520,0.089519,56738.0,56737.0,0.0004]
[1725985211901,0.177638,56738.0,56737.0,0.0004]
[1725985212403,0.264138,56738.0,56737.0,0.0004]
[1725985213297,0.0014,56738.0,56737.0,0.0004]
[1725985213496,0.0004,56738.0,56737.0,0.088521]
[1725985213706,0.0014,56738.0,56737.0,0.089521]
[1725985214409,0.0045,56751.0,56750.0,0.088101]
[1725985214609,0.0004,56751.0,56750.0,0.088501]
[1725985214909,0.0004,56751.0,56750.0,0.617141]
[1725985215217,0.0004,56751.0,56750.0,0.088501]
[1725985215505,0.01227043,56759.0,56750.0,0.0004]
[1725985215809,0.176198,56751.0,56750.0,0.0004]
[1725985215999,0.088112,56743.0,56740.0,0.21225844]
[1725985216196,0.088095,56754.0,56740.0,0.087]
[1725985216197,0.088515,56741.0,56740.0,0.087]
[1725985216400,0.088119,56738.0,56737.0,0.001]
[1725985216603,0.088119,56738.0,56730.0,0.0829]
[1725985216604,0.0004,56738.0,56732.0,0.0866]
[1725985216821,0.0004,56738.0,56732.0,0.2866]
[1725985216822,0.0004,56733.0,56732.0,0.2866]
[1725985217012,0.0004,56738.0,56732.0,0.2866]
[1725985217311,0.088519,56738.0,56737.0,0.0004]
[1725985218109,0.10022581,56738.0,56737.0,0.0004]
[1725985219097,0.0004,56738.0,56737.0,0.0004]
[1725985219912,0.0004,56738.0,56737.0,0.088521]
[1725985220209,0.0004,56738.0,56737.0,0.089521]
[1725985220409,0.088519,56738.0,56737.0,0.0014]
[1725985221597,0.088519,56738.0,56737.0,0.0004]
[1725985221803,0.088519,56738.0,56737.0,0.0014]
[1725985222902,0.0004,56738.0,56737.0,0.0004]
[1725985223103,0.0004,56738.0,56737.0,0.088521]
[1725985223304,0.0004,56738.0,56737.0,0.0004]
[1725985223511,0.088519,56738.0,56737.0,0.0004]
[1725985224014,0.0004,56738.0,56737.0,0.0004]
[1725985224204,0.0004,56738.0,56737.0,0.088521]
[1725985224709,0.0004,56738.0,56737.0,0.617281]
[1725985224909,0.0004,56738.0,56737.0,0.088521]
[1725985227512,0.0004,56738.0,56737.0,0.091521]
[1725985227705,0.088519,56738.0,56737.0,0.0034]
[1725985227910,0.0874,56752.0,56737.0,0.0034]
[1725985228108,0.088098,56752.0,56751.0,0.0004]
[1725985228311,0.088098,56752.0,56751.0,0.1727]
[1725985228813,0.30020752,56752.0,56751.0,0.0004]
[1725985229007,0.38830552,56752.0,56751.0,0.0004]
[1725985229407,1.51694552,56752.0,56751.0,0.0014]
[1725985229807,0.088112,56743.0,56742.0,0.05252738]
[1725985230004,1.34074952,56752.0,56739.0,0.24713651]
[1725985230005,0.2,56746.0,56739.0,0.22962738]
[1725985230210,0.088116,56740.0,56739.0,0.1771]
[1725985230505,0.088516,56740.0,56739.0,0.1771]
[1725985230706,0.088516,56740.0,56733.0,0.07003651]
[1725985230707,0.0004,56740.0,56733.0,0.07003651]
[1725985230902,0.088123,56736.0,56735.0,0.05272248]
[1725985231111,0.0004,56740.0,56735.0,0.14084648]
[1725985231415,0.088116,56740.0,56739.0,0.0004]
[1725985231808,0.0004,56743.0,56739.0,0.25312248]
[1725985232012,0.0004,56743.0,56742.0,0.0004]
[1725985232213,0.088512,56743.0,56742.0,0.084]
[1725985232605,0.10041645,56743.0,56742.0,0.084]
[1725985234413,0.10041645,56743.0,56742.0,0.085]
[1725985235005,0.10041645,56743.0,56742.0,0.0014]
[1725985236806,1.60536045,56743.0,56742.0,0.0014]
[1725985237007,0.088121,56737.0,56731.0,0.05272248]
[1725985237207,0.0004,56733.0,56730.0,0.05272248]
[1725985237608,0.0004,56733.0,56729.0,0.05272248]
[1725985237921,0.0004,56733.0,56728.0,0.05276542]
[1725985238219,0.088133,56729.0,56727.0,0.05276542]
[1725985238430,0.0004,56729.0,56728.0,0.35816951]
[1725985238716,0.0004,56729.0,56728.0,0.288133]
[1725985239919,0.0041,56742.0,56736.0,0.088122]
[1725985240128,0.092909,56745.0,56737.0,0.0845]
[1725985240129,0.088121,56738.0,56737.0,0.0845]
[1725985240312,0.088114,56742.0,56737.0,0.33724766]
[1725985240519,0.0004,56743.0,56741.0,0.2004]
[1725985240718,0.0004,56743.0,56742.0,0.0004]
[1725985240921,0.088113,56742.0,56741.0,0.2004]
[1725985241219,0.08811,56744.0,56741.0,0.2004]
[1725985241421,0.002,56742.0,56741.0,0.2004]
[1725985242118,0.08811,56744.0,56741.0,0.0004]
[1725985242316,0.0041,56756.0,56743.0,0.2804]
[1725985242521,0.088101,56751.0,56746.0,0.05274766]
[1725985242831,0.28,56755.0,56745.0,0.00104]
[1725985243018,0.28,56755.0,56744.0,0.05274766]
[1725985243019,0.368093,56755.0,56754.0,0.0004]
[1725985243413,0.456186,56755.0,56754.0,0.0004]
[1725985243613,0.456186,56755.0,56743.0,0.0004]
[1725985243614,0.08811,56744.0,56743.0,0.0004]
[1725985243814,0.36851,56744.0,56743.0,0.0004]
[1725985244327,1.5853,56744.0,56743.0,0.0004]
[1725985244623,1.5853,56744.0,56741.0,0.0024]
[1725985244624,0.176226,56742.0,56741.0,0.002]
[1725985244920,0.176226,56742.0,56732.0,0.05274766]
[1725985244921,0.0004,56742.0,56732.0,0.05274766]
[1725985245122,0.0004,56742.0,56726.0,0.05274766]
[1725985245123,0.0004,56733.0,56726.0,0.05274766]
[1725985245325,0.088137,56727.0,56726.0,0.05274766]
[1725985245521,0.088137,56727.0,56718.0,0.0814]
[1725985245522,0.08814,56725.0,56724.0,0.05274766]
[1725985245722,0.088137,56727.0,56723.0,0.07033022]
[1725985245926,0.088137,56727.0,56726.0,0.05277415]
[1725985246122,0.088137,56727.0,56726.0,0.0004]
[1725985246312,0.088137,56727.0,56726.0,0.0114]
[1725985246622,0.176274,56727.0,56726.0,0.0114]
[1725985247224,0.088137,56727.0,56726.0,0.0114]
[1725985247422,0.089137,56727.0,56726.0,0.0114]
[1725985247623,0.1009325,56727.0,56726.0,0.0114]
[1725985247825,0.1009325,56727.0,56726.0,0.0004]
[1725985248327,1.2297725,56727.0,56726.0,0.0004]
[1725985248627,0.1009325,56727.0,56726.0,0.0034]
[1725985258140,0.00506,56741.0,56726.0,0.81224]
[1725985258325,0.088125,56735.0,56730.0,0.08813]
[1725985258630,0.28,56743.0,56730.0,0.08813]
[1725985258928,0.18845562,56742.0,56741.0,0.0004]
[1725985259118,0.264739,56742.0,56741.0,0.0004]
[1725985259531,0.176626,56742.0,56741.0,0.0004]
[1725985259729,0.18857558,56742.0,56741.0,0.0004]
[1725985260234,0.10046258,56742.0,56741.0,0.0004]
[1725985260528,0.10046258,56742.0,56741.0,0.0014]
[1725985261231,0.10046258,56742.0,56741.0,0.0024]
[1725985261432,0.01234958,56742.0,56741.0,0.090515]
[1725985261622,0.0004,56742.0,56741.0,0.090515]
[1725985262338,0.088103,56749.0,56745.0,0.088108]
[1725985262534,0.2,56754.0,56748.0,0.0004]
[1725985262832,0.088102,56749.0,56748.0,0.0004]
[1725985264340,0.088102,56749.0,56748.0,0.0024]
[1725985264840,0.088119,56738.0,56735.0,0.32776]
[1725985265026,0.088119,56738.0,56734.0,0.0895]
[1725985265432,0.088519,56738.0,56734.0,0.0895]
[1725985265732,0.088519,56738.0,56728.0,0.05277415]
[1725985265935,0.1004626,56738.0,56737.0,0.0869]
[1725985266138,0.1004626,56738.0,56737.0,0.001]
[1725985267240,0.1004626,56738.0,56737.0,0.002]
[1725985268534,0.0123436,56738.0,56737.0,0.002]
[1725985268742,0.19714251,56755.0,56740.0,0.088116]
[1725985268743,0.088102,56750.0,56740.0,0.088116]
[1725985269039,0.08811,56745.0,56741.0,0.0862]
[1725985269236,0.08811,56745.0,56742.0,0.083]
[1725985269538,0.088103,56749.0,56742.0,0.083]
[1725985269840,0.088105,56748.0,56744.0,0.2]
[1725985270032,0.088102,56749.0,56744.0,0.2]
[1725985270229,0.088102,56749.0,56748.0,0.0004]
[1725985271035,0.001,56750.0,56748.0,0.288504]
[1725985271234,0.001,56750.0,56749.0,0.0004]
[1725985271434,0.001,56750.0,56749.0,0.088502]
[1725985271833,0.2,56762.0,56749.0,0.0004]
[1725985272032,0.2,56762.0,56753.0,0.088096]
[1725985272033,0.088094,56755.0,56753.0,0.088096]
[1725985272433,0.088095,56754.0,56751.0,0.2]
[1725985272639,0.0004,56752.0,56751.0,0.2]
[1725985272942,0.088086,56760.0,56751.0,0.2]
[1725985273140,0.088086,56760.0,56749.0,0.0823]
[1725985273141,0.088086,56760.0,56759.0,0.0004]
[1725985274641,0.088086,56760.0,56759.0,0.0014]
[1725985275144,0.176173,56760.0,56759.0,0.0014]
[1725985275748,0.18933857,56760.0,56759.0,0.0014]
[1725985275935,0.088098,56752.0,56751.0,0.001]
[1725985276141,0.088098,56752.0,56751.0,0.089099]
[1725985276142,0.0004,56752.0,56751.0,0.089099]
[1725985276859,0.0004,56752.0,56751.0,0.617739]
[1725985277040,0.001,56760.0,56759.0,0.089087]
[1725985277236,0.0041,56774.0,56759.0,0.281]
[1725985277449,0.3643,56779.0,56766.0,0.28]
[1725985277750,0.28,56775.0,56767.0,0.174]
[1725985278046,0.088073,56768.0,56767.0,0.174]
[1725985278746,0.088073,56768.0,56767.0,0.0872]
[1725985278955,0.088081,56763.0,56759.0,0.0004]
[1725985279247,0.0004,56760.0,56759.0,0.175686]
[1725985280345,0.0004,56760.0,56759.0,0.176686]
[1725985281340,0.0004,56760.0,56759.0,0.177686]
[1725985282738,0.0004,56760.0,56759.0,0.0896]
[1725985282945,0.088485,56760.0,56759.0,0.0896]
[1725985283644,0.088485,56760.0,56759.0,0.177687]
[1725985283845,0.0004,56760.0,56759.0,0.177687]
[1725985284045,0.088485,56760.0,56759.0,0.177687]
[1725985284552,0.0004,56760.0,56759.0,0.177687]
[1725985285941,0.088485,56760.0,56759.0,0.0896]
[1725985286548,0.088485,56760.0,56759.0,0.177687]
[1725985286745,0.17657,56760.0,56759.0,0.0896]
[1725985286955,0.45657,56760.0,56759.0,0.0024]
[1725985288945,1.144655,56760.0,56759.0,0.0024]
[1725985289149,1.673215,56760.0,56759.0,0.0024]
[1725985289340,0.0881,56751.0,56742.0,0.0857]
[1725985289546,1.40896,56760.0,56742.0,0.0857]
[1725985289547,0.088112,56743.0,56742.0,0.0857]
[1725985289757,0.088512,56743.0,56742.0,0.0857]
[1725985290144,0.088112,56743.0,56742.0,0.0857]
[1725985290354,0.088112,56743.0,56732.0,0.05277415]
[1725985290355,1.12872,56743.0,56732.0,0.05277415]
[1725985290659,0.088132,56730.0,56729.0,0.0849]
[1725985290956,0.088532,56730.0,56729.0,0.0849]
[1725985291747,0.2804,56730.0,56721.0,0.05277415]
[1725985291949,0.0004,56722.0,56720.0,0.13767415]
[1725985292149,0.0004,56721.0,56720.0,0.0849]
[1725985292353,0.0004,56722.0,56720.0,0.0849]
[1725985292651,0.0004,56722.0,56721.0,0.0004]
[1725985292949,0.0004,56722.0,56721.0,0.0134]
[1725985293147,0.0004,56722.0,56721.0,0.101546]
[1725985294356,0.0004,56722.0,56721.0,0.0134]
[1725985294542,0.0004,56722.0,56721.0,0.0064]
[1725985294742,0.088544,56722.0,56721.0,0.0064]
[1725985295155,0.088544,56722.0,56721.0,0.0164]
[1725985298455,0.10062798,56722.0,56721.0,0.0164]
[1725985299056,0.18877198,56722.0,56721.0,0.0164]
[1725985301154,0.10062798,56722.0,56721.0,0.0164]